bitfinex/quotes_ETHUSD_20241129
["timestamp","ask_amount","ask_price","bid_price","bid_amount"]
[1732903551161,2.78017,3596.9,3596.0,3.69704443]
[1732903551319,2.78017,3596.9,3596.2,2.78068]
[1732903551320,2.78032,3596.7,3596.2,2.78068]
[1732903551825,2.78032,3596.7,3596.0,6.47786443]
[1732903552325,2.78032,3596.7,3596.1,2.78078]
[1732903553523,2.7804,3596.6,3596.1,2.78078]
[1732903553967,2.7804,3596.6,3596.2,1.18749156]
[1732903554171,2.7803,3596.8,3596.3,0.41304054]
[1732903554326,0.63426343,3597.1,3596.3,0.41304054]
[1732903554327,2.78017,3596.9,3596.3,3.03873034]
[1732903554767,2.7803,3596.8,3596.1,2.78074]
[1732903554969,2.7803,3596.8,3596.2,3.00667605]
[1732903555265,2.7803,3596.8,3596.3,0.22599605]
[1732903555468,3.0,3596.9,3596.4,3.68196156]
[1732903555690,0.56261433,3597.3,3596.5,0.08692156]
[1732903555691,3.0,3597.2,3596.5,0.08692156]
[1732903555831,0.56261433,3597.3,3596.7,2.78028]
[1732903556025,2.77994,3597.2,3596.8,0.08692156]
[1732903556223,3.56261433,3597.3,3596.9,0.08692156]
[1732903556423,3.56261433,3597.3,3596.8,2.78024]
[1732903556866,3.56261433,3597.3,3596.9,0.08691196]
[1732903557173,3.0,3597.3,3597.0,0.08691196]
[1732903557385,3.0,3597.3,3596.9,0.7937]
[1732903557677,3.0,3597.3,3597.0,0.08691146]
[1732903557830,3.0,3597.3,3596.9,0.7937]
[1732903558844,3.0,3597.3,3597.0,0.08691111]
[1732903559016,3.0,3597.3,3596.9,0.7937]
[1732903559184,3.0,3597.3,3597.0,0.08691138]
[1732903559502,3.55039593,3597.5,3597.0,2.78008]
[1732903559813,5.77955,3597.7,3597.2,2.77993]
[1732903559945,6.3327274,3597.7,3597.2,2.77993]
[1732903560550,0.5531774,3597.7,3597.2,2.77988]
[1732903560995,0.5531774,3597.7,3597.3,0.08690051]
[1732903561150,0.5531774,3597.7,3597.2,2.77988]
[1732903561352,0.5531774,3597.7,3597.3,0.08690028]
[1732903561600,0.5531774,3597.7,3597.4,0.08690028]
[1732903561802,2.77924,3598.1,3597.2,2.77988]
[1732903561948,3.0,3597.9,3597.4,2.77971]
[1732903562661,3.0,3597.9,3597.3,0.7951]
[1732903562662,2.7794,3597.9,3597.3,0.7951]
[1732903562868,2.7794,3597.9,3597.4,0.08689616]
[1732903563184,6.34581191,3598.1,3597.5,0.0868908]
[1732903563494,2.7794,3597.9,3597.3,3.57493]
[1732903563700,2.7794,3597.9,3597.4,0.08689372]
[1732903563912,6.9804331,3598.1,3597.4,2.77973]
[1732903564395,4.2011531,3598.1,3597.4,2.77973]
[1732903564556,3.0,3597.9,3597.4,2.77973]
[1732903565352,3.0,3597.9,3597.5,0.08689285]
[1732903565688,3.0,3597.9,3597.4,2.77973]
[1732903565892,0.97596931,3597.9,3597.3,3.57494]
[1732903566195,3.75537931,3597.9,3597.4,0.08689446]
[1732903566392,3.75537931,3597.9,3597.3,3.57494]
[1732903566613,3.75537931,3597.9,3597.4,0.08689464]
[1732903566898,3.75537931,3597.9,3597.3,3.57494]
[1732903567205,0.97596931,3597.9,3597.4,0.08689465]
[1732903567510,3.56657191,3598.1,3597.5,0.08689477]
[1732903567792,3.56657191,3598.1,3597.3,0.7951]
[1732903567793,2.77946,3597.9,3597.3,0.7951]
[1732903567968,2.77946,3597.9,3597.4,0.08689479]
[1732903568494,3.0,3598.0,3597.6,2.77961]
[1732903568652,3.56657191,3598.1,3597.6,2.77961]
[1732903569106,3.0,3598.1,3597.6,2.77961]
[1732903569280,3.577921,3598.1,3597.6,2.77961]
[1732903569480,0.577921,3598.1,3597.6,2.77961]
[1732903569670,3.0,3598.0,3597.6,2.77961]
[1732903569996,2.77945,3597.9,3597.3,3.57495]
[1732903570148,3.55699989,3598.2,3597.3,3.57495]
[1732903570149,3.0,3598.0,3597.4,2.86664361]
[1732903570356,2.77963,3597.6,3597.5,0.08689361]
[1732903570664,2.77986,3597.3,3597.0,0.13903768]
[1732903570875,2.77986,3597.3,3597.1,0.08690355]
[1732903571067,2.77986,3597.3,3596.8,0.13904568]
[1732903571253,2.77986,3597.3,3596.7,3.58157]
[1732903571450,0.277963,3597.5,3596.9,0.0869086]
[1732903571451,3.057703,3597.5,3596.9,0.0869086]
[1732903571688,3.057703,3597.5,3597.0,0.0869086]
[1732903571904,2.77979,3597.4,3597.1,0.0869086]
[1732903572107,2.77979,3597.4,3596.9,2.7801]
[1732903572398,2.77979,3597.4,3597.0,0.08690708]
[1732903572689,2.77979,3597.4,3597.1,0.08690708]
[1732903572896,2.77979,3597.4,3596.8,2.78024]
[1732903573197,2.77979,3597.4,3596.9,0.08690703]
[1732903573395,2.77979,3597.4,3596.8,2.78024]
[1732903573602,2.77979,3597.4,3596.9,0.08690704]
[1732903573847,2.77979,3597.4,3596.8,2.78024]
[1732903574118,2.77979,3597.4,3596.9,0.08690705]
[1732903574291,2.77979,3597.4,3596.8,2.78024]
[1732903574659,2.77986,3597.3,3596.8,2.78024]
[1732903574943,2.77986,3597.3,3596.9,0.08690698]
[1732903575093,2.77986,3597.3,3596.8,2.78024]
[1732903575521,2.77993,3597.2,3596.4,0.7684]
[1732903575786,2.78049,3596.5,3596.1,0.7684]
[1732903576021,2.7806,3596.4,3596.2,0.08692423]
[1732903576329,2.7806,3596.4,3596.1,0.7684]
[1732903576688,2.78048,3596.5,3595.9,3.56163]
[1732903576895,2.78059,3596.4,3596.0,0.08692963]
[1732903577119,2.78059,3596.4,3595.9,0.7807]
[1732903577317,2.78082,3596.1,3596.0,0.08692982]
[1732903577661,2.78082,3596.1,3595.9,0.7807]
[1732903577831,2.78087,3596.0,3595.6,0.8042]
[1732903579305,2.78096,3595.9,3595.3,0.8147]
[1732903579542,3.33049707,3596.2,3595.6,2.78114]
[1732903579711,3.33049707,3596.2,3595.5,2.7812]
[1732903579913,3.33049707,3596.2,3595.3,3.59605]
[1732903579914,2.78087,3596.0,3595.3,3.59605]
[1732903580101,2.78087,3596.0,3595.4,0.08693884]
[1732903580404,2.78087,3596.0,3595.3,3.59605]
[1732903580712,3.33049707,3596.2,3595.4,0.08693883]
[1732903581030,3.33049707,3596.2,3595.6,2.78117]
[1732903581228,3.0,3596.3,3595.7,0.8]
[1732903581543,2.78048,3596.5,3595.9,2.78094]
[1732903581767,3.0,3596.2,3595.7,3.58108]
[1732903581924,5.7806,3596.4,3595.8,2.78102]
[1732903582357,3.0,3596.2,3595.7,0.8]
[1732903582544,3.0,3596.2,3595.4,0.77]
[1732903582750,2.78125,3595.5,3595.2,0.77]
[1732903583071,2.78154,3595.2,3594.9,0.77]
[1732903583284,2.78154,3595.2,3593.9,5.56697312]
[1732903583285,2.78164,3595.0,3594.4,2.78204]
[1732903583558,2.78164,3595.0,3594.5,0.77]
[1732903584133,2.78152,3595.2,3594.5,0.77]
[1732903584458,2.78164,3595.0,3594.5,0.77]
[1732903584964,2.78156,3595.2,3594.6,2.78193]
[1732903584965,2.78154,3595.2,3594.6,2.78193]
[1732903585229,3.55367633,3595.3,3594.7,2.78181]
[1732903585320,2.78133,3595.4,3594.7,2.78181]
[1732903585533,3.278133,3595.3,3594.5,3.55202]
[1732903585765,3.278133,3595.3,3594.7,2.78187]
[1732903586054,3.278133,3595.3,3594.5,3.55196]
[1732903586259,6.059563,3595.3,3594.5,0.77]
[1732903586443,6.059563,3595.3,3594.5,3.55196]
[1732903586649,3.278133,3595.3,3594.6,2.7819]
[1732903586844,0.278133,3595.3,3594.7,2.78185]
[1732903587045,0.278133,3595.3,3594.6,2.7819]
[1732903587260,3.278133,3595.3,3594.6,2.7819]
[1732903587859,0.278133,3595.3,3594.8,2.78177]
[1732903588154,0.278133,3595.3,3594.5,3.552]
[1732903588321,0.66184789,3595.2,3594.6,2.78189]
[1732903589056,0.66184789,3595.2,3594.7,2.78185]
[1732903589243,0.66184789,3595.2,3594.8,2.78175]
[1732903589827,0.66184789,3595.2,3594.6,2.78194]
[1732903590141,0.55907586,3595.4,3594.5,0.77]
[1732903590343,0.55907586,3595.4,3594.7,2.78184]
[1732903590505,0.55907586,3595.4,3594.5,0.77]
[1732903590709,0.55907586,3595.4,3595.0,2.78158]
[1732903591046,0.55907586,3595.4,3595.2,2.78148]
[1732903591339,0.55907586,3595.4,3595.2,2.78147]
[1732903591553,0.55907586,3595.4,3595.0,2.78158]
[1732903592239,0.55907586,3595.4,3595.2,2.78147]
[1732903592443,2.78072,3596.2,3595.6,2.78116]
[1732903592643,2.78069,3596.3,3595.5,2.78121]
[1732903592829,2.78077,3596.2,3595.5,2.78121]
[1732903593038,0.556146,3596.1,3595.5,2.78121]
[1732903593402,2.78048,3596.5,3595.1,0.8064]
[1732903593646,2.78054,3596.5,3595.6,2.78115]
[1732903593815,2.78064,3596.3,3595.6,2.78115]
[1732903594548,2.78073,3596.2,3595.6,2.78115]
[1732903594818,0.55240962,3596.0,3595.6,2.78115]
[1732903599423,0.55240962,3596.0,3595.8,2.78101]
[1732903600064,3.0,3596.3,3595.1,0.7714]
[1732903600246,5.56387312,3598.0,3596.6,2.78039]
[1732903600247,2.77995,3597.2,3596.6,2.78039]
[1732903600561,2.77979,3597.4,3596.6,2.78039]
[1732903600753,2.77997,3597.2,3596.6,2.78039]
[1732903601661,0.55418616,3597.0,3596.6,2.78039]
[1732903602660,3.0,3596.9,3596.2,2.78071]
[1732903602865,0.63342962,3596.9,3595.9,0.757]
[1732903603069,0.55418616,3597.0,3596.7,2.78031]
[1732903603225,0.55418616,3597.0,3596.9,2.78017]
[1732903603666,0.55418616,3597.0,3596.5,0.8074]
[1732903603869,2.77968,3597.6,3596.9,2.78017]
[1732903604169,0.855916,3597.5,3597.0,2.78008]
[1732903604467,0.55646745,3597.4,3597.0,2.78008]
[1732903605852,0.55646745,3597.4,3597.1,2.77995]
[1732903606064,0.855916,3597.5,3597.0,2.78008]
[1732903606257,0.5644818,3597.7,3597.1,3.5913]
[1732903606465,3.35644818,3597.6,3597.1,3.5913]
[1732903606967,3.3440318,3597.7,3597.3,2.77982]
[1732903606968,0.5644818,3597.7,3597.3,2.77982]
[1732903607168,3.5644818,3597.7,3597.1,3.59128]
[1732903607523,3.5644818,3597.7,3597.2,2.77991]
[1732903607780,6.3440318,3597.7,3597.2,2.77991]
[1732903608584,6.3440318,3597.7,3597.1,0.8113]
[1732903608737,3.0,3598.0,3597.1,0.8113]
[1732903608939,3.0,3598.0,3597.3,2.77981]
[1732903609151,2.77917,3598.2,3597.5,2.77963]
[1732903609354,2.77939,3598.0,3597.3,2.77983]
[1732903609552,2.77942,3597.9,3597.3,2.77983]
[1732903609765,2.77939,3598.0,3597.1,3.59129]
[1732903609976,2.77948,3597.8,3597.2,2.77989]
[1732903610187,3.11358806,3598.0,3597.1,3.59129]
[1732903610488,2.77952,3597.8,3597.2,2.77988]
[1732903610639,2.77955,3597.7,3597.2,2.77988]
[1732903610843,2.77967,3597.6,3597.1,0.8113]
[1732903611043,2.77967,3597.6,3597.0,2.78008]
[1732903611295,5.77941,3597.9,3597.1,2.78]
[1732903611455,2.77957,3597.7,3597.1,2.78]
[1732903611792,0.66761986,3597.8,3596.8,0.7831]
[1732903611946,5.77941,3597.9,3597.1,2.77995]
[1732903611947,5.7796,3597.7,3597.1,2.77995]
[1732903612361,2.77971,3597.5,3596.9,2.78014]
[1732903613658,2.77986,3597.3,3596.8,0.7831]
[1732903613989,3.0,3597.4,3596.8,3.56334]
[1732903614284,3.0,3597.4,3596.9,2.78017]
[1732903614886,3.0,3597.4,3596.8,0.7831]
[1732903614887,5.77981,3597.4,3597.0,0.25743668]
[1732903615084,6.635762,3597.4,3596.8,0.7831]
[1732903615320,6.635762,3597.4,3596.8,3.56333]
[1732903616177,2.77992,3597.3,3596.8,0.7831]
[1732903616376,3.855952,3597.4,3596.8,0.7831]
[1732903616559,6.635782,3597.4,3596.8,3.56334]
[1732903617481,7.17805118,3597.4,3596.8,3.56334]
[1732903617682,2.78452312,3597.2,3596.2,0.7523]
[1732903617866,3.0,3597.1,3596.2,0.7523]
[1732903618072,3.0,3597.0,3596.4,2.78048]
[1732903618303,3.0,3597.0,3596.3,2.78058]
[1732903618608,3.54226918,3597.4,3596.2,0.7523]
[1732903618907,3.0,3597.2,3596.9,2.78013]
[1732903619064,3.54226918,3597.4,3596.9,2.78013]
[1732903619466,2.77948,3597.8,3597.1,2.77996]
[1732903619699,0.58930781,3597.8,3596.8,3.59069]
[1732903619875,2.7797,3597.5,3596.8,3.59069]
[1732903620201,2.7797,3597.5,3596.9,2.78016]
[1732903620570,3.32410142,3597.7,3597.0,2.78007]
[1732903621103,5.77967,3597.6,3597.0,2.78007]
[1732903621518,5.77967,3597.6,3597.1,2.78001]
[1732903621863,0.54455142,3597.7,3597.1,2.78001]
[1732903622304,3.0,3597.6,3597.1,2.78001]
[1732903622611,5.77963,3597.6,3596.9,2.78015]
[1732903622763,3.0,3597.6,3597.0,2.78003]
[1732903622962,2.77973,3597.5,3596.9,2.78015]
[1732903623265,2.77985,3597.4,3596.8,0.8105]
[1732903623469,2.77986,3597.3,3596.8,0.8105]
[1732903623706,2.77963,3597.6,3596.8,0.8105]
[1732903624031,2.77991,3597.3,3596.6,3.57565]
[1732903624226,2.78021,3596.9,3596.4,0.7953]
[1732903624373,2.78016,3597.0,3596.4,3.57583]
[1732903624566,3.0,3597.3,3596.4,3.57583]
[1732903624809,2.78015,3597.0,3596.4,3.57583]
[1732903625312,2.78028,3596.8,3596.4,0.7953]
[1732903625467,2.78021,3596.9,3596.2,2.78066]
[1732903625664,2.78011,3597.0,3596.2,2.78066]
[1732903625665,2.78009,3597.0,3596.2,2.78066]
[1732903625912,2.78034,3596.7,3596.2,2.78066]
[1732903626081,2.78026,3596.8,3596.2,2.78066]
[1732903626280,2.78032,3596.7,3596.1,0.8033]
[1732903626482,2.78032,3596.7,3596.1,3.58407]
[1732903626984,2.78045,3596.6,3595.8,2.78101]
[1732903627180,2.78062,3596.4,3595.8,2.78101]
[1732903627397,2.78062,3596.4,3595.9,2.78093]
[1732903628277,2.78062,3596.4,3595.7,3.53116]
[1732903628469,2.78062,3596.4,3595.8,0.08693162]
[1732903628684,2.78064,3596.3,3595.7,3.53116]
[1732903628909,2.78064,3596.3,3595.8,0.08693266]
[1732903629082,2.78064,3596.3,3595.7,3.53116]
[1732903629275,2.78064,3596.3,3595.8,0.08693232]
[1732903629473,2.7804,3596.6,3595.9,0.08693232]
[1732903629704,2.78061,3596.4,3595.8,2.78101]
[1732903629884,2.78063,3596.3,3595.7,0.7501]
[1732903630204,2.78061,3596.4,3595.8,0.08693252]
[1732903630409,2.78081,3596.1,3595.7,0.7501]
[1732903630710,2.78071,3596.2,3595.8,0.08693277]
[1732903630896,2.78071,3596.2,3595.7,0.7501]
[1732903631210,2.78071,3596.2,3595.8,0.08693289]
[1732903631427,2.78071,3596.2,3595.7,0.7501]
[1732903632217,2.78066,3596.3,3595.7,0.7501]
[1732903632373,3.0,3596.5,3595.7,0.7501]
[1732903632574,3.0,3596.5,3595.8,0.08693255]
[1732903632884,2.78064,3596.3,3595.8,2.78101]
[1732903633071,2.78064,3596.3,3595.7,0.7501]
[1732903633270,2.78072,3596.2,3595.7,0.7501]
[1732903633472,2.78073,3596.2,3595.7,0.7501]
[1732903633911,2.78073,3596.2,3595.7,3.53119]
[1732903634376,2.78079,3596.1,3595.7,0.7501]
[1732903634659,2.78073,3596.2,3595.7,0.7501]
[1732903634800,2.78092,3596.0,3595.7,0.7501]
[1732903634995,2.78073,3596.2,3595.7,0.7501]
[1732903635200,3.0,3596.3,3595.7,0.7501]
[1732903635414,2.78072,3596.2,3595.7,0.7501]
[1732903635637,5.78063,3596.3,3595.7,0.7501]
[1732903636096,2.78085,3596.1,3595.7,0.7501]
[1732903636299,3.0,3596.3,3595.7,3.53119]
[1732903636537,3.578059,3596.3,3595.7,0.7501]
[1732903636741,2.78093,3596.0,3595.7,0.7501]
[1732903636944,2.78108,3595.8,3595.4,0.7805]
[1732903637133,2.78124,3595.6,3595.1,0.7805]
[1732903637331,2.78124,3595.6,3595.2,0.08694731]
[1732903637637,2.78124,3595.6,3595.1,0.7805]
[1732903638057,2.78108,3595.8,3595.1,3.56206]
[1732903638201,2.7811,3595.7,3595.1,3.56206]
[1732903638720,2.78112,3595.7,3595.1,3.56206]
[1732903639046,2.78122,3595.6,3595.1,0.7805]
[1732903639999,2.7814,3595.3,3595.1,0.7805]
[1732903640619,2.78125,3595.5,3595.1,0.7805]
[1732903640816,2.78142,3595.3,3594.7,0.7619]
[1732903641011,2.78153,3595.2,3594.8,0.08695586]
[1732903641551,2.78153,3595.2,3594.7,0.7619]
[1732903642208,0.56614692,3595.6,3594.8,2.78179]
[1732903642409,2.78131,3595.5,3594.8,0.08695616]
[1732903642948,2.78142,3595.3,3594.7,0.7619]
[1732903643532,2.78131,3595.5,3594.7,3.54372]
[1732903643735,6.39419669,3595.4,3594.7,3.54372]
[1732903644743,0.61285669,3595.4,3594.9,2.7817]
[1732903644948,0.61285669,3595.4,3594.7,3.54372]
[1732903645152,0.61285669,3595.4,3594.7,0.7619]
[1732903645304,3.39418669,3595.4,3594.8,2.78177]
[1732903645642,0.61285669,3595.4,3594.9,2.78169]
[1732903646139,0.56614692,3595.6,3594.9,2.78169]
[1732903646348,5.78103,3595.8,3595.2,2.78148]
[1732903647024,3.0,3595.6,3594.8,0.55]
[1732903647230,3.0,3595.6,3595.1,2.78149]
[1732903647809,0.55095544,3595.7,3595.3,2.7814]
[1732903648158,1.18414698,3595.7,3595.1,2.78149]
[1732903648320,1.18414698,3595.7,3595.3,2.78138]
[1732903648517,0.55095544,3595.7,3595.4,2.78133]
[1732903648736,6.358739,3596.3,3595.6,2.78112]
[1732903648906,2.78071,3596.2,3595.6,2.78112]
[1732903649106,0.55669631,3596.1,3595.6,2.78112]
[1732903650547,3.336438,3596.7,3596.1,2.78071]
[1732903650712,3.1140438,3596.6,3596.1,2.78077]
[1732903651327,0.56559989,3596.4,3596.1,2.78077]
[1732903651539,0.56559989,3596.4,3595.9,3.59421]
[1732903652152,0.56559989,3596.4,3596.1,2.78073]
[1732903652311,0.3336438,3596.6,3596.1,2.78073]
[1732903652506,3.0,3596.7,3596.1,2.78073]
[1732903652750,5.78025,3596.8,3596.3,2.78058]
[1732903653019,2.78018,3596.9,3596.1,2.78072]
[1732903653020,3.05530824,3596.6,3596.1,2.78072]
[1732903653292,0.05525708,3596.5,3596.1,2.78072]
[1732903654053,0.05525708,3596.5,3596.2,2.78069]
[1732903654541,2.78084,3596.1,3595.5,3.57123]
[1732903654744,2.78084,3596.1,3595.6,0.08694039]
[1732903654952,0.05503664,3596.0,3595.5,3.57123]
[1732903658287,0.05503664,3596.0,3595.5,3.57125]
[1732903658751,0.60196748,3596.0,3595.5,3.57125]
[1732903659739,3.38287748,3596.0,3595.5,0.79]
[1732903660077,1.21833923,3596.0,3595.5,3.57124]
[1732903660581,3.99924923,3596.0,3595.5,0.79]
[1732903660791,1.21833923,3596.0,3595.5,3.57122]
[1732903662373,0.60196748,3596.0,3595.6,2.78117]
[1732903663789,0.60196748,3596.0,3595.5,0.79]
[1732903663962,3.38282748,3596.0,3595.5,0.79]
[1732903665451,0.05313425,3595.9,3595.5,0.79]
[1732903666090,0.05313425,3595.9,3595.5,3.57124]
[1732903669367,0.05313425,3595.9,3595.5,0.79]
[1732903670254,0.05313425,3595.9,3595.5,3.5712]
[1732903673248,0.05313425,3595.9,3595.5,0.79]
[1732903673454,2.83409425,3595.9,3595.5,0.79]
[1732903673673,0.05313425,3595.9,3595.5,0.79]
[1732903675198,0.05313425,3595.9,3595.5,3.57118]
[1732903676264,0.05313425,3595.9,3595.6,2.78114]
[1732903676465,0.05313425,3595.9,3595.5,0.79]
[1732903677209,0.05313425,3595.9,3595.5,3.57124]
[1732903678218,0.05313425,3595.9,3595.6,0.2587312]
[1732903679025,0.05313425,3595.9,3595.7,1.19040971]
[1732903679318,0.05313425,3595.9,3595.8,0.51759917]
[1732903683582,0.05313425,3595.9,3595.8,0.51764107]
[1732903684299,0.05313425,3595.9,3595.8,1.80214793]
[1732903684523,5.83407425,3595.9,3595.8,0.60458018]
[1732903684721,5.83407425,3595.9,3594.9,0.8325]
[1732903684722,5.78102,3595.8,3595.2,0.43136755]
[1732903685015,7.12921159,3595.8,3595.3,0.51785405]
[1732903685224,0.05126924,3595.7,3595.4,0.51785405]
[1732903685423,0.05126924,3595.7,3595.5,0.51785405]
[1732903685585,5.78102,3595.8,3595.1,3.21287755]
[1732903685779,5.78102,3595.8,3595.2,0.60441106]
[1732903685986,3.0,3595.6,3595.3,0.51745887]
[1732903686329,0.05116687,3595.5,3595.4,0.51745887]
[1732903691559,6.41565256,3595.5,3595.4,0.51745887]
[1732903691716,2.78156,3595.1,3594.7,0.43136755]
[1732903691914,2.78156,3595.1,3594.8,0.51755648]
[1732903691915,2.78165,3595.0,3594.8,0.51755648]
[1732903692127,0.04905757,3595.0,3594.9,0.51755648]
[1732903692458,0.04907784,3595.0,3594.9,0.51755648]
[1732903692826,3.58323569,3595.5,3594.9,0.51755648]
[1732903693030,0.04905774,3595.0,3594.6,1.24926755]
[1732903693354,2.78149,3595.2,3594.6,1.24926755]
[1732903693355,0.04900653,3594.9,3594.7,0.5174351]
[1732903693564,2.78147,3595.3,3594.8,0.5174351]
[1732903693720,2.78157,3595.1,3594.9,0.5174351]
[1732903694060,2.78157,3595.1,3594.6,0.8179]
[1732903694061,2.78173,3594.9,3594.6,0.8179]
[1732903694353,2.78173,3594.9,3594.7,0.51724705]
[1732903694567,2.78173,3594.9,3594.8,0.51724705]
[1732903694917,2.78157,3595.1,3594.8,0.51724705]
[1732903695113,2.78179,3594.8,3594.6,0.8179]
[1732903695419,2.78179,3594.8,3594.7,0.51709376]
[1732903696152,2.78179,3594.8,3594.6,0.8179]
[1732903696451,2.82879913,3594.8,3594.7,0.51706456]
[1732903697918,2.78217,3594.4,3594.3,0.7583]
[1732903698128,0.04700913,3594.8,3594.3,1.27510488]
[1732903698129,2.82882913,3594.8,3594.3,1.27510488]
[1732903698329,2.78182,3594.8,3594.4,0.51680488]
[1732903698528,2.78195,3594.6,3594.5,0.51656175]
[1732903698762,2.78195,3594.6,3594.5,0.51654264]
[1732903698941,2.78195,3594.6,3594.3,0.7583]
[1732903699145,2.78195,3594.6,3594.4,0.51653091]
[1732903699370,2.78195,3594.6,3594.5,0.51653091]
[1732903699671,2.78195,3594.6,3594.3,0.7583]
[1732903699865,2.78195,3594.6,3594.4,0.5164383]
[1732903700174,0.04523843,3594.5,3594.3,0.7583]
[1732903700329,0.04523843,3594.5,3594.4,0.51643397]
[1732903700724,2.82725843,3594.5,3594.4,0.51643397]
[1732903701674,2.82725843,3594.5,3594.3,0.7583]
[1732903701966,0.04523843,3594.5,3594.3,0.7583]
[1732903702267,2.7821,3594.4,3594.3,0.7583]
[1732903702440,2.7821,3594.4,3594.3,1.2748421]
[1732903702645,2.7821,3594.4,3594.0,0.7664]
[1732903702831,0.04523843,3594.5,3594.0,0.7664]
[1732903702832,0.04523843,3594.5,3594.4,1.3164]
[1732903703168,2.78161,3595.1,3594.6,0.7664]
[1732903703469,2.78178,3594.9,3594.8,0.8307]
[1732903703641,2.78178,3594.9,3594.8,1.34727056]
[1732903703853,2.82350583,3594.9,3594.8,1.34727056]
[1732903705368,0.04172583,3594.9,3594.8,1.34727056]
[1732903705871,2.78171,3594.9,3594.8,1.34727056]
[1732903706024,2.82341744,3594.9,3594.8,1.34727056]
[1732903706345,0.04170744,3594.9,3594.8,1.34727056]
[1732903706674,2.82341744,3594.9,3594.8,1.61681677]
[1732903706982,2.78171,3594.9,3594.8,1.34727056]
[1732903707152,2.8219968,3594.9,3594.8,1.34727056]
[1732903708046,0.0402868,3594.9,3594.8,1.34727056]
[1732903708431,2.78171,3594.9,3594.8,1.34727056]
[1732903708771,2.78171,3594.9,3594.8,1.3472154]
[1732903708772,2.8219968,3594.9,3594.8,1.3472154]
[1732903710774,0.0402868,3594.9,3594.8,0.5165154]
[1732903711146,2.78164,3595.0,3594.8,0.5165154]
[1732903711468,2.82059797,3594.9,3594.5,0.8085]
[1732903711645,2.82059797,3594.9,3594.6,0.51666564]
[1732903711646,2.78187,3594.7,3594.6,0.51666564]
[1732903711975,2.78218,3594.3,3594.0,0.4304295]
[1732903712199,2.78233,3594.1,3593.9,0.8085]
[1732903712336,2.78233,3594.1,3594.0,0.51697096]
[1732903714352,2.81940555,3594.1,3594.0,0.51697096]
[1732903715445,2.78261,3593.8,3593.6,0.7712]
[1732903715678,2.78261,3593.8,3593.7,0.51700632]
[1732903718086,2.81944106,3593.8,3593.7,0.51700632]
[1732903718285,2.81944106,3593.8,3593.7,0.51686244]
[1732903722950,0.03683106,3593.8,3593.7,0.51686244]
[1732903723152,0.03683106,3593.8,3593.7,0.78048784]
[1732903724500,0.03683106,3593.8,3593.7,2.12748784]
[1732903724679,0.03683106,3593.8,3593.7,1.6106254]
[1732903724879,2.78242,3594.0,3593.7,2.12734455]
[1732903725189,2.78231,3594.2,3593.7,1.6106254]
[1732903725356,0.03593821,3593.9,3593.8,0.516713]
[1732903725557,2.78236,3594.1,3593.8,1.18560393]
[1732903725789,2.78236,3594.1,3593.9,0.516713]
[1732903725995,2.78236,3594.1,3593.8,0.66889093]
[1732903726157,2.78236,3594.1,3593.9,0.51672183]
[1732903726357,2.78236,3594.1,3593.8,0.66889093]
[1732903726569,2.78236,3594.1,3593.9,0.51670816]
[1732903726774,2.78236,3594.1,3593.8,0.66889093]
[1732903726957,2.78241,3594.0,3593.9,0.51672202]
[1732903727302,2.78241,3594.0,3593.7,1.6106254]
[1732903727303,2.78249,3593.9,3593.7,1.347]
[1732903727600,2.78249,3593.9,3593.8,0.51672473]
[1732903728124,2.78249,3593.9,3593.8,0.51667305]
[1732903729227,2.8184304,3593.9,3593.8,0.51667305]
[1732903731187,2.8184304,3593.9,3593.8,0.51663586]
[1732903731913,2.8184304,3593.9,3593.8,0.70299945]
[1732903732382,2.8184304,3593.9,3593.8,0.18636359]
[1732903732582,0.60502911,3593.9,3593.7,0.797]
[1732903733279,0.60502911,3593.9,3593.8,0.51699908]
[1732903734531,0.60502911,3593.9,3593.8,0.5169784]
[1732903734824,3.38751911,3593.9,3593.8,0.5169784]
[1732903738156,3.38751911,3593.9,3593.8,0.51750274]
[1732903738835,3.38751911,3593.9,3593.7,0.797]
[1732903739046,3.38751911,3593.9,3593.7,1.28980416]
[1732903739213,3.38751911,3593.9,3593.8,0.51766583]
[1732903739741,3.38751911,3593.9,3593.7,1.28980416]
[1732903740311,0.60502911,3593.9,3593.7,1.28980416]
[1732903740643,3.35157871,3593.9,3593.7,0.797]
[1732903740853,3.35157871,3593.9,3593.8,0.93276938]
[1732903741509,0.56908871,3593.9,3593.8,0.93276938]
[1732903741705,3.0,3594.7,3593.8,2.28096097]
[1732903741964,0.55284606,3594.6,3594.3,1.34819159]
[1732903742106,2.78166,3595.0,3594.4,0.55]
[1732903742302,2.78166,3595.0,3594.6,0.7509]
[1732903742507,2.78147,3595.3,3594.6,3.53284]
[1732903742706,2.78147,3595.3,3594.6,0.7509]
[1732903742944,0.56492739,3595.3,3594.7,0.41651998]
[1732903743120,2.78155,3595.2,3594.7,0.55]
[1732903743325,0.2,3597.3,3595.0,0.779]
[1732903743523,0.56476037,3595.6,3595.2,2.78148]
[1732903744049,0.56476037,3595.6,3595.2,0.55]
[1732903744363,0.56476037,3595.6,3595.3,1.34819159]
[1732903744364,0.0307691,3595.5,3595.3,1.34819159]
[1732903744514,0.0307691,3595.5,3595.4,5.65054075]
[1732903744714,2.78087,3596.0,3595.4,4.30234916]
[1732903744913,0.03097387,3595.9,3595.4,5.65054075]
[1732903746031,0.03097387,3595.9,3595.4,4.30234916]
[1732903746548,2.81193387,3595.9,3595.4,1.52101916]
[1732903746717,2.81193387,3595.9,3595.5,0.56506707]
[1732903746918,0.03097387,3595.9,3595.5,0.56506707]
[1732903747772,0.58893969,3595.9,3595.5,0.56506707]
[1732903747914,0.03097387,3595.9,3595.6,0.55]
[1732903748116,2.78065,3596.3,3595.8,0.55]
[1732903748416,0.03112742,3596.2,3595.8,0.55]
[1732903748619,2.78084,3596.1,3595.8,0.55]
[1732903748931,0.03120382,3596.0,3595.8,1.01820571]